[Event "*** Titled Tuesday 3|2 Blitz"]
[Site "Chess.com"]
[Date "2017.06.06"]
[Round "3"]
[White "pKiLz5Rn9b"]
[Black "ChessNinja48"]
[Result "1-0"]
[WhiteElo "2494"]
[BlackElo "2306"]
[TimeControl "180+2"]
[EndTime "14:29:39 PDT"]
[Termination "pKiLz5Rn9b won by resignation"]

1. d4 {[%clk 0:03:02]} 1... Nf6 {[%clk 0:02:54.9]} 2. Nf3 {[%clk 0:03:02.9]}
2... c6 {[%clk 0:02:56.2]} 3. Nbd2 {[%clk 0:03:02.6]} 3... d5 {[%clk 0:02:57.1]}
4. e3 {[%clk 0:03:04.1]} 4... g6 {[%clk 0:02:58]} 5. Bd3 {[%clk 0:03:03.6]} 5...
Bg7 {[%clk 0:02:59.4]} 6. O-O {[%clk 0:03:04.7]} 6... O-O {[%clk 0:03:00.7]} 7.
c3 {[%clk 0:03:06.2]} 7... Bg4 {[%clk 0:02:49.1]} 8. h3 {[%clk 0:03:06.9]} 8...
Bxf3 {[%clk 0:02:50.2]} 9. Nxf3 {[%clk 0:03:08.8]} 9... Nbd7 {[%clk 0:02:51.9]}
10. c4 {[%clk 0:03:09.4]} 10... e6 {[%clk 0:02:48.1]} 11. Qe2 {[%clk 0:03:10]}
11... a5 {[%clk 0:02:42]} 12. Bd2 {[%clk 0:03:07.8]} 12... Ne4 {[%clk
0:02:23.4]} 13. Be1 {[%clk 0:03:06.5]} 13... Nd6 {[%clk 0:02:08.9]} 14. c5
{[%clk 0:03:01.3]} 14... Ne4 {[%clk 0:02:04.1]} 15. Bxe4 {[%clk 0:03:02.5]}
15... dxe4 {[%clk 0:02:05.1]} 16. Nd2 {[%clk 0:03:04.1]} 16... Nf6 {[%clk
0:02:06.3]} 17. Nc4 {[%clk 0:03:04.1]} 17... Nd5 {[%clk 0:01:56.3]} 18. Rd1
{[%clk 0:03:04.7]} 18... Qc7 {[%clk 0:01:48.1]} 19. Kh1 {[%clk 0:03:00.5]} 19...
f5 {[%clk 0:01:48.4]} 20. f3 {[%clk 0:02:58.8]} 20... e5 {[%clk 0:01:33.6]} 21.
fxe4 {[%clk 0:02:40.7]} 21... fxe4 {[%clk 0:01:33.6]} 22. Bg3 {[%clk 0:02:41.2]}
22... Nf4 {[%clk 0:01:14.7]} 23. exf4 {[%clk 0:02:30.3]} 23... exf4 {[%clk
0:01:15.9]} 24. Bh2 {[%clk 0:02:29.8]} 24... Rae8 {[%clk 0:00:54.4]} 25. Nd6
{[%clk 0:02:30.2]} 25... g5 {[%clk 0:00:52.8]} 26. Nxe8 {[%clk 0:02:27.8]} 26...
Rxe8 {[%clk 0:00:54.7]} 27. d5 {[%clk 0:02:26.2]} 27... cxd5 {[%clk 0:00:48]}
28. Rxd5 {[%clk 0:02:26.7]} 28... Qe7 {[%clk 0:00:49.2]} 29. Rfd1 {[%clk
0:02:25]} 29... e3 {[%clk 0:00:46]} 30. Qc4 {[%clk 0:02:11.6]} 30... Kh8 {[%clk
0:00:45]} 31. Bg1 {[%clk 0:02:06.8]} 31... Bxb2 {[%clk 0:00:32.1]} 32. Rd7
{[%clk 0:02:07]} 32... Qf6 {[%clk 0:00:28.8]} 33. R1d6 {[%clk 0:02:02.9]} 33...
Qf5 {[%clk 0:00:21.5]} 34. Rd8 {[%clk 0:01:48.8]} 34... Rxd8 {[%clk 0:00:18.9]}
35. Rxd8+ {[%clk 0:01:50.7]} 35... Kg7 {[%clk 0:00:20.3]} 36. Qg8+ {[%clk
0:01:37.2]} 36... Kh6 {[%clk 0:00:21.5]} 37. Qf8+ {[%clk 0:01:37.4]} 37... Qxf8
{[%clk 0:00:21.1]} 38. Rxf8 {[%clk 0:01:39.3]} 38... Bd4 {[%clk 0:00:16.6]} 39.
g4 {[%clk 0:01:22.9]} 39... e2 {[%clk 0:00:15.3]} 40. Re8 {[%clk 0:01:23.2]}
40... Be3 {[%clk 0:00:16.5]} 41. Bf2 {[%clk 0:01:12.8]} 41... Bxf2 {[%clk
0:00:17]} 42. Rxe2 {[%clk 0:01:14.2]} 42... Bxc5 {[%clk 0:00:18.9]} 43. Kg2
{[%clk 0:01:15.3]} 43... b6 {[%clk 0:00:19.4]} 44. Kf3 {[%clk 0:01:14.6]} 44...
Kg7 {[%clk 0:00:18.5]} 45. Re6 {[%clk 0:01:12.5]} 45... Kf7 {[%clk 0:00:16.7]}
46. Rc6 {[%clk 0:01:12.8]} 46... Kg7 {[%clk 0:00:17.6]} 47. Ke4 {[%clk
0:01:13.9]} 47... Kf7 {[%clk 0:00:18.8]} 48. a4 {[%clk 0:01:12]} 48... Kg7
{[%clk 0:00:18.9]} 49. Rc7+ {[%clk 0:01:12.5]} 49... Kg6 {[%clk 0:00:19.4]} 50.
Rc6+ {[%clk 0:01:13.2]} 50... Kg7 {[%clk 0:00:20.6]} 51. Kf3 {[%clk 0:01:04.6]}
51... Kf7 {[%clk 0:00:20.9]} 52. Ke2 {[%clk 0:01:02.9]} 52... Kg7 {[%clk
0:00:22]} 53. Ke1 {[%clk 0:01:02.5]} 53... f3 {[%clk 0:00:22.9]} 54. Kd2 {[%clk
0:00:58.9]} 54... f2 {[%clk 0:00:20.1]} 55. Ke2 {[%clk 0:00:59.7]} 55... Kf7
{[%clk 0:00:18.5]} 56. Rc7+ {[%clk 0:00:54.3]} 56... Kg6 {[%clk 0:00:15]} 57.
Rc8 {[%clk 0:00:55.6]} 57... Kg7 {[%clk 0:00:14.2]} 58. Rd8 {[%clk 0:00:54.9]}
58... Kf6 {[%clk 0:00:15.1]} 59. Rd5 {[%clk 0:00:56.2]} 59... Kg6 {[%clk
0:00:12.6]} 60. Rf5 {[%clk 0:00:56.9]} 60... h5 {[%clk 0:00:13.4]} 61. Kd3
{[%clk 0:00:56.2]} 61... hxg4 {[%clk 0:00:12.6]} 62. hxg4 {[%clk 0:00:58.1]}
62... Kh6 {[%clk 0:00:11.6]} 63. Rf3 {[%clk 0:00:58]} 63... Kg6 {[%clk
0:00:11.8]} 64. Ke4 {[%clk 0:00:59.4]} 64... Kg7 {[%clk 0:00:07.6]} 65. Kf5
{[%clk 0:00:57.7]} 65... Kh6 {[%clk 0:00:08.9]} 66. Ke5 {[%clk 0:00:42.9]} 66...
Kg6 {[%clk 0:00:09.1]} 67. Ke6 {[%clk 0:00:44.2]} 67... Bd4 {[%clk 0:00:07.7]}
68. Rf8 {[%clk 0:00:38.4]} 68... Be3 {[%clk 0:00:07.7]} 69. Rf6+ {[%clk
0:00:38.5]} 69... Kg7 {[%clk 0:00:08.4]} 70. Rf3 {[%clk 0:00:40.4]} 70... Bc5
{[%clk 0:00:09.1]} 71. Kd7 {[%clk 0:00:38]} 71... Kg6 {[%clk 0:00:09.4]} 72. Ke8
{[%clk 0:00:37.5]} 72... Kg7 {[%clk 0:00:10.4]} 73. Rf5 {[%clk 0:00:36.9]} 73...
Kg6 {[%clk 0:00:11.5]} 74. Kd7 {[%clk 0:00:37.8]} 74... Be3 {[%clk 0:00:12.2]}
75. Rf3 {[%clk 0:00:38.9]} 75... Bc5 {[%clk 0:00:13.3]} 76. Ke6 {[%clk
0:00:39.9]} 76... Bd4 {[%clk 0:00:13]} 77. Kd5 {[%clk 0:00:32.5]} 77... Bc5
{[%clk 0:00:13.8]} 78. Ke5 {[%clk 0:00:32.1]} 78... Be3 {[%clk 0:00:12.1]} 79.
Rf6+ {[%clk 0:00:31.4]} 79... Kg7 {[%clk 0:00:13]} 80. Rf3 {[%clk 0:00:33.1]}
80... Bc5 {[%clk 0:00:13.8]} 81. Kf5 {[%clk 0:00:34.2]} 81... Kh6 {[%clk
0:00:13.1]} 82. Kf6 {[%clk 0:00:35.1]} 82... Bd4+ {[%clk 0:00:13.8]} 83. Kf7
{[%clk 0:00:36]} 1-0

[Event "*** Titled Tuesday 3|2 Blitz"]
[Site "Chess.com"]
[Date "2017.06.06"]
[Round "4"]
[White "mwpchess"]
[Black "igorkovalenko"]
[Result "0-1"]
[WhiteElo "2466"]
[BlackElo "2635"]
[TimeControl "180+2"]
[EndTime "14:32:01 PDT"]
[Termination "igorkovalenko won by resignation"]

1. e4 {[%clk 0:03:02]} 1... c6 {[%clk 0:03:00.7]} 2. d4 {[%clk 0:03:01.7]} 2...
d5 {[%clk 0:03:02.6]} 3. e5 {[%clk 0:02:59.8]} 3... Bf5 {[%clk 0:03:01.4]} 4. h4
{[%clk 0:02:59.4]} 4... Qc7 {[%clk 0:03:01.8]} 5. h5 {[%clk 0:02:56.9]} 5... c5
{[%clk 0:03:01.9]} 6. Nc3 {[%clk 0:02:49.9]} 6... cxd4 {[%clk 0:03:00.1]} 7.
Qxd4 {[%clk 0:02:47.9]} 7... Nc6 {[%clk 0:03:01.1]} 8. Nxd5 {[%clk 0:02:33.3]}
8... O-O-O {[%clk 0:03:00]} 9. Nxc7 {[%clk 0:02:25.3]} 9... Nxd4 {[%clk
0:02:57.4]} 10. Bd3 {[%clk 0:02:19.8]} 10... Bxd3 {[%clk 0:02:57.1]} 0-1

[Event "*** Titled Tuesday 3|2 Blitz"]
[Site "Chess.com"]
[Date "2017.06.06"]
[Round "4"]
[White "Kawhi_Leonard2"]
[Black "Journey_to_GrandMaster_YT"]
[Result "0-1"]
[WhiteElo "2181"]
[BlackElo "2338"]
[TimeControl "180+2"]
[EndTime "14:32:19 PDT"]
[Termination "Journey_to_GrandMaster_YT won by resignation"]

1. e4 {[%clk 0:03:02]} 1... d6 {[%clk 0:02:59.7]} 2. d4 {[%clk 0:03:02.1]} 2...
Nf6 {[%clk 0:03:00.4]} 3. Nc3 {[%clk 0:03:03]} 3... e5 {[%clk 0:03:01.5]} 4. Nf3
{[%clk 0:03:02.8]} 4... Nbd7 {[%clk 0:03:02.1]} 5. Bc4 {[%clk 0:03:03.4]} 5...
Be7 {[%clk 0:03:03.3]} 6. O-O {[%clk 0:03:02.5]} 6... O-O {[%clk 0:03:04.7]} 7.
Re1 {[%clk 0:03:00]} 7... c6 {[%clk 0:03:05.7]} 8. a4 {[%clk 0:03:00.1]} 8... a5
{[%clk 0:03:06.8]} 9. b3 {[%clk 0:03:00.5]} 9... exd4 {[%clk 0:03:00.1]} 10.
Qxd4 {[%clk 0:03:00]} 10... Ne5 {[%clk 0:02:53.9]} 11. Nxe5 {[%clk 0:02:48.2]}
11... dxe5 {[%clk 0:02:54.9]} 12. Qxe5 {[%clk 0:02:49.3]} 12... Ng4 {[%clk
0:02:54.6]} 13. Qg3 {[%clk 0:02:40.8]} 13... Bh4 {[%clk 0:02:53.6]} 0-1

[Event "*** Titled Tuesday 3|2 Blitz"]
[Site "Chess.com"]
[Date "2017.06.06"]
[Round "4"]
[White "TrickyTrapChess"]
[Black "Zufi1811"]
[Result "1/2-1/2"]
[WhiteElo "2281"]
[BlackElo "2360"]
[TimeControl "180+2"]
[EndTime "14:32:54 PDT"]
[Termination "Game drawn by agreement"]

1. c4 {[%clk 0:03:02]} 1... Nf6 {[%clk 0:02:59.7]} 2. Nc3 {[%clk 0:03:02.8]}
2... e5 {[%clk 0:02:59.2]} 3. g3 {[%clk 0:03:02.3]} 3... Nc6 {[%clk 0:02:59.8]}
4. Bg2 {[%clk 0:03:01.7]} 4... Bc5 {[%clk 0:03:01.3]} 5. e3 {[%clk 0:03:01.8]}
5... d6 {[%clk 0:03:01.2]} 6. Nge2 {[%clk 0:03:01.5]} 6... a6 {[%clk 0:03:02.6]}
7. O-O {[%clk 0:02:57.9]} 7... O-O {[%clk 0:03:03.1]} 8. d4 {[%clk 0:02:58.7]}
8... Ba7 {[%clk 0:03:03.1]} 9. h3 {[%clk 0:02:52]} 9... h6 {[%clk 0:02:59]} 10.
Kh2 {[%clk 0:02:37.6]} 10... Bf5 {[%clk 0:02:56.9]} 11. d5 {[%clk 0:02:34.2]}
11... Ne7 {[%clk 0:02:54.3]} 12. e4 {[%clk 0:02:31.4]} 12... Bh7 {[%clk
0:02:45.5]} 13. f4 {[%clk 0:02:20.7]} 13... exf4 {[%clk 0:02:42.5]} 14. gxf4
{[%clk 0:02:19.6]} 14... Nd7 {[%clk 0:02:42.8]} 15. Nd4 {[%clk 0:02:16.8]} 15...
Kh8 {[%clk 0:02:42.1]} 16. Be3 {[%clk 0:02:13.7]} 1/2-1/2

[Event "*** Titled Tuesday 3|2 Blitz"]
[Site "Chess.com"]
[Date "2017.06.06"]
[Round "4"]
[White "PaulfromSPb"]
[Black "Hikaru"]
[Result "0-1"]
[WhiteElo "2576"]
[BlackElo "2909"]
[TimeControl "180+2"]
[EndTime "14:35:20 PDT"]
[Termination "Hikaru won by resignation"]

1. e4 {[%clk 0:03:00.3]} 1... c5 {[%clk 0:02:59.2]} 2. Ne2 {[%clk 0:03:01.1]}
2... d6 {[%clk 0:02:57.2]} 3. g3 {[%clk 0:03:01.8]} 3... Nf6 {[%clk 0:02:57]} 4.
Bg2 {[%clk 0:03:02.6]} 4... g6 {[%clk 0:02:58.9]} 5. c3 {[%clk 0:03:03.7]} 5...
Bg7 {[%clk 0:02:56]} 6. d4 {[%clk 0:03:04.5]} 6... Nc6 {[%clk 0:02:57.5]} 7. O-O
{[%clk 0:03:05.1]} 7... O-O {[%clk 0:02:57.6]} 8. h3 {[%clk 0:03:03.4]} 8... Nd7
{[%clk 0:02:52.1]} 9. Be3 {[%clk 0:03:01.1]} 9... e5 {[%clk 0:02:46.5]} 10. Na3
{[%clk 0:02:53.9]} 10... b6 {[%clk 0:02:43.4]} 11. f4 {[%clk 0:02:34.7]} 11...
exd4 {[%clk 0:02:35.9]} 12. cxd4 {[%clk 0:02:35.3]} 12... Ba6 {[%clk 0:02:36.9]}
13. e5 {[%clk 0:02:31.5]} 13... Nxd4 {[%clk 0:02:22.1]} 14. Bxd4 {[%clk
0:01:49.2]} 14... cxd4 {[%clk 0:02:24]} 15. Bxa8 {[%clk 0:01:23.4]} 15... Qxa8
{[%clk 0:02:24.6]} 16. Qxd4 {[%clk 0:01:14.7]} 16... Bxe2 {[%clk 0:02:23]} 17.
Rf2 {[%clk 0:01:15.9]} 17... Ba6 {[%clk 0:02:22.9]} 18. Qxd6 {[%clk 0:01:16.7]}
18... Nc5 {[%clk 0:02:23.7]} 19. Rg2 {[%clk 0:00:57.1]} 19... Rd8 {[%clk
0:02:14.4]} 20. Qc7 {[%clk 0:00:57.3]} 20... Bf8 {[%clk 0:02:11.8]} 21. b4
{[%clk 0:00:43.5]} 21... Rd7 {[%clk 0:02:10.2]} 0-1

[Event "*** Titled Tuesday 3|2 Blitz"]
[Site "Chess.com"]
[Date "2017.06.06"]
[Round "4"]
[White "Patov"]
[Black "Jadeit90"]
[Result "1-0"]
[WhiteElo "2318"]
[BlackElo "2158"]
[TimeControl "180+2"]
[EndTime "14:35:34 PDT"]
[Termination "Patov won by resignation"]

1. e4 {[%clk 0:02:59.1]} 1... g6 {[%clk 0:02:57.8]} 2. d4 {[%clk 0:02:59.6]}
2... Bg7 {[%clk 0:02:59.2]} 3. Nf3 {[%clk 0:02:54.2]} 3... c5 {[%clk 0:02:59.9]}
4. c3 {[%clk 0:02:51.3]} 4... cxd4 {[%clk 0:03:01]} 5. cxd4 {[%clk 0:02:52.2]}
5... d6 {[%clk 0:03:02.3]} 6. h3 {[%clk 0:02:51.5]} 6... Nf6 {[%clk 0:03:03.2]}
7. Nc3 {[%clk 0:02:52]} 7... O-O {[%clk 0:03:04.1]} 8. Bd3 {[%clk 0:02:48.2]}
8... a6 {[%clk 0:03:05.5]} 9. O-O {[%clk 0:02:46.9]} 9... b5 {[%clk 0:03:03.6]}
10. e5 {[%clk 0:02:45.9]} 10... Ne8 {[%clk 0:02:59]} 11. Be4 {[%clk 0:02:43]}
11... Ra7 {[%clk 0:02:59.7]} 12. Be3 {[%clk 0:02:43.6]} 12... Rd7 {[%clk
0:02:56.5]} 13. Qb3 {[%clk 0:02:36.5]} 13... Bb7 {[%clk 0:02:53.8]} 14. e6
{[%clk 0:02:33]} 14... Bxe4 {[%clk 0:02:38.5]} 15. exd7 {[%clk 0:02:29.3]} 15...
Nf6 {[%clk 0:02:39.2]} 16. Nxe4 {[%clk 0:02:27.9]} 16... Nxe4 {[%clk 0:02:40.4]}
17. a4 {[%clk 0:02:28.7]} 17... Qxd7 {[%clk 0:02:40.7]} 18. axb5 {[%clk
0:02:28.1]} 18... axb5 {[%clk 0:02:41.4]} 19. Ra5 {[%clk 0:02:28.2]} 19... Qc7
{[%clk 0:02:07.9]} 20. Rxb5 {[%clk 0:02:26.8]} 20... Nd7 {[%clk 0:02:05.3]} 21.
Rb7 {[%clk 0:02:18.7]} 21... Qd8 {[%clk 0:02:05.9]} 22. Rc1 {[%clk 0:02:10.8]}
22... Ndf6 {[%clk 0:02:05.9]} 23. Rcc7 {[%clk 0:02:09.6]} 23... e6 {[%clk
0:02:06.4]} 24. Bg5 {[%clk 0:01:55.7]} 24... h6 {[%clk 0:02:06.4]} 25. Bxf6
{[%clk 0:01:54.2]} 25... Qxf6 {[%clk 0:02:07.3]} 26. Rb8 {[%clk 0:01:51.7]}
26... Rxb8 {[%clk 0:02:07.3]} 27. Qxb8+ {[%clk 0:01:53.6]} 27... Kh7 {[%clk
0:02:09.2]} 28. Qa7 {[%clk 0:01:53.6]} 28... Kg8 {[%clk 0:02:09.3]} 29. b4
{[%clk 0:01:53.7]} 29... Qf5 {[%clk 0:02:01.4]} 30. b5 {[%clk 0:01:25.4]} 1-0

[Event "*** Titled Tuesday 3|2 Blitz"]
[Site "Chess.com"]
[Date "2017.06.06"]
[Round "4"]
[White "ViIIagra"]
[Black "AdrianaNikolova"]
[Result "1-0"]
[WhiteElo "2595"]
[BlackElo "2326"]
[TimeControl "180+2"]
[EndTime "14:35:55 PDT"]
[Termination "ViIIagra won by resignation"]

1. e4 {[%clk 0:03:02]} 1... c5 {[%clk 0:02:59.6]} 2. Nf3 {[%clk 0:02:57.4]} 2...
Nc6 {[%clk 0:02:58]} 3. Bb5 {[%clk 0:02:57.7]} 3... d6 {[%clk 0:02:54.6]} 4. O-O
{[%clk 0:02:57.7]} 4... Bd7 {[%clk 0:02:55.1]} 5. c3 {[%clk 0:02:58.8]} 5... Nf6
{[%clk 0:02:54.3]} 6. Re1 {[%clk 0:02:59.3]} 6... a6 {[%clk 0:02:54.7]} 7. Bf1
{[%clk 0:03:00.4]} 7... Bg4 {[%clk 0:02:56.1]} 8. d4 {[%clk 0:03:01.7]} 8...
cxd4 {[%clk 0:02:49.9]} 9. cxd4 {[%clk 0:03:03.6]} 9... Bxf3 {[%clk 0:02:51.2]}
10. gxf3 {[%clk 0:03:05.5]} 10... e5 {[%clk 0:02:51.4]} 11. d5 {[%clk
0:03:06.5]} 11... Nb8 {[%clk 0:02:38.2]} 12. Be3 {[%clk 0:03:07.4]} 12... Nbd7
{[%clk 0:02:38.4]} 13. Qb3 {[%clk 0:03:01.8]} 13... g5 {[%clk 0:02:09.4]} 14.
Qxb7 {[%clk 0:02:51.7]} 14... Rb8 {[%clk 0:02:09.9]} 15. Qxa6 {[%clk 0:02:51.6]}
15... Rxb2 {[%clk 0:02:10.1]} 16. Nc3 {[%clk 0:02:49.5]} 16... Be7 {[%clk
0:01:45.8]} 17. Nb5 {[%clk 0:02:45]} 17... Nb8 {[%clk 0:01:32.1]} 18. Qa3 {[%clk
0:02:43.3]} 18... Rc2 {[%clk 0:01:32.9]} 19. Qa4 {[%clk 0:02:44.1]} 19... Rb2
{[%clk 0:01:18.6]} 20. Nxd6+ {[%clk 0:02:44.8]} 20... Kf8 {[%clk 0:01:19]} 21.
Nf5 {[%clk 0:02:45.4]} 21... Bb4 {[%clk 0:01:02.2]} 22. Re2 {[%clk 0:02:23.3]}
22... Rxe2 {[%clk 0:00:15.9]} 23. Qxb4+ {[%clk 0:02:23]} 23... Kg8 {[%clk
0:00:17.8]} 24. Bxe2 {[%clk 0:02:19.6]} 24... Nxd5 {[%clk 0:00:19.7]} 25. exd5
{[%clk 0:02:18.6]} 25... Qf6 {[%clk 0:00:21.6]} 26. Qxb8+ {[%clk 0:02:18.9]} 1-0

[Event "*** Titled Tuesday 3|2 Blitz"]
[Site "Chess.com"]
[Date "2017.06.06"]
[Round "4"]
[White "lucasmito"]
[Black "hassler2"]
[Result "0-1"]
[WhiteElo "2054"]
[BlackElo "2292"]
[TimeControl "180+2"]
[EndTime "14:35:55 PDT"]
[Termination "hassler2 won by resignation"]

1. e4 {[%clk 0:03:02]} 1... c5 {[%clk 0:01:26.4]} 2. Nf3 {[%clk 0:03:01.2]} 2...
Nc6 {[%clk 0:01:27.2]} 3. d4 {[%clk 0:02:57.7]} 3... cxd4 {[%clk 0:01:27.5]} 4.
Nxd4 {[%clk 0:02:59.6]} 4... g6 {[%clk 0:01:27.2]} 5. Nc3 {[%clk 0:03:00.7]}
5... Bg7 {[%clk 0:01:23.4]} 6. Be3 {[%clk 0:03:02]} 6... Nf6 {[%clk 0:01:24.3]}
7. Bc4 {[%clk 0:03:00.7]} 7... O-O {[%clk 0:01:23.3]} 8. Bb3 {[%clk 0:02:57]}
8... d6 {[%clk 0:01:24.4]} 9. f3 {[%clk 0:02:57.8]} 9... Bd7 {[%clk 0:01:25.2]}
10. Qd2 {[%clk 0:02:57.9]} 10... Rc8 {[%clk 0:01:25.8]} 11. O-O-O {[%clk
0:02:58.4]} 11... Ne5 {[%clk 0:01:23.8]} 12. g4 {[%clk 0:02:57.8]} 12... a5
{[%clk 0:01:19.8]} 13. a3 {[%clk 0:02:54.9]} 13... b5 {[%clk 0:01:19.3]} 14. h4
{[%clk 0:02:53.7]} 14... h5 {[%clk 0:01:10.7]} 15. g5 {[%clk 0:02:53.5]} 15...
b4 {[%clk 0:01:10.2]} 16. Nb1 {[%clk 0:02:47.4]} 16... Ne8 {[%clk 0:00:55.8]}
17. axb4 {[%clk 0:02:47.3]} 17... axb4 {[%clk 0:00:55.9]} 18. Qxb4 {[%clk
0:02:48.3]} 18... Rb8 {[%clk 0:00:53.3]} 19. Qd2 {[%clk 0:02:43.9]} 19... e6
{[%clk 0:00:51.3]} 20. Nc3 {[%clk 0:02:37.5]} 20... Qa5 {[%clk 0:00:51.5]} 21.
f4 {[%clk 0:01:49.8]} 21... Nf3 {[%clk 0:00:39.4]} 22. Nxf3 {[%clk 0:01:44.7]}
22... Qa1+ {[%clk 0:00:39.4]} 0-1

[Event "*** Titled Tuesday 3|2 Blitz"]
[Site "Chess.com"]
[Date "2017.06.06"]
[Round "4"]
[White "Paul66666"]
[Black "proxy6"]
[Result "1-0"]
[WhiteElo "2555"]
[BlackElo "2310"]
[TimeControl "180+2"]
[EndTime "14:37:22 PDT"]
[Termination "Paul66666 won on time"]

1. d4 {[%clk 0:03:02]} 1... Nf6 {[%clk 0:02:59.9]} 2. Bg5 {[%clk 0:03:02.2]}
2... d5 {[%clk 0:02:52.4]} 3. e3 {[%clk 0:03:02.5]} 3... e6 {[%clk 0:02:50.9]}
4. c4 {[%clk 0:03:00.9]} 4... Bb4+ {[%clk 0:02:46.5]} 5. Nc3 {[%clk 0:03:00.5]}
5... Nbd7 {[%clk 0:02:45.5]} 6. cxd5 {[%clk 0:03:00.1]} 6... exd5 {[%clk
0:02:44.2]} 7. Bd3 {[%clk 0:03:00.7]} 7... c5 {[%clk 0:02:44.3]} 8. Ne2 {[%clk
0:03:01.4]} 8... c4 {[%clk 0:02:36.2]} 9. Bc2 {[%clk 0:03:02.2]} 9... O-O {[%clk
0:02:26.5]} 10. O-O {[%clk 0:03:02.3]} 10... Qa5 {[%clk 0:02:00.3]} 11. a3
{[%clk 0:02:54.7]} 11... Bd6 {[%clk 0:01:56.1]} 12. f3 {[%clk 0:02:23.9]} 12...
Re8 {[%clk 0:01:53]} 13. Qd2 {[%clk 0:02:16.3]} 13... h6 {[%clk 0:01:19.5]} 14.
Bh4 {[%clk 0:02:17.1]} 14... b6 {[%clk 0:00:38.9]} 15. e4 {[%clk 0:02:14.2]}
15... dxe4 {[%clk 0:00:39.2]} 16. fxe4 {[%clk 0:02:16.1]} 16... Qh5 {[%clk
0:00:39.5]} 17. Bg3 {[%clk 0:02:09.9]} 17... Bxg3 {[%clk 0:00:29.5]} 18. Nxg3
{[%clk 0:02:11.8]} 18... Qg4 {[%clk 0:00:26]} 19. e5 {[%clk 0:01:50]} 19... Nh5
{[%clk 0:00:12.9]} 20. Qf2 {[%clk 0:01:30.8]} 20... f6 {[%clk 0:00:04.3]} 21.
Bf5 {[%clk 0:01:25.6]} 21... Qh4 {[%clk 0:00:03.8]} 22. Qf3 {[%clk 0:01:27]}
22... Nxg3 {[%clk 0:00:03.2]} 23. Qd5+ {[%clk 0:01:23.2]} 23... Kh8 {[%clk
0:00:03.1]} 24. hxg3 {[%clk 0:01:24.2]} 24... Qxg3 {[%clk 0:00:03.1]} 25. Qxa8
{[%clk 0:01:25]} 25... Qe3+ {[%clk 0:00:03.7]} 26. Rf2 {[%clk 0:01:23.6]} 26...
Qxd4 {[%clk 0:00:04.3]} 27. Bg6 {[%clk 0:01:11.7]} 27... Rf8 {[%clk 0:00:02.4]}
28. Rd1 {[%clk 0:01:11.5]} 1-0

[Event "*** Titled Tuesday 3|2 Blitz"]
[Site "Chess.com"]
[Date "2017.06.06"]
[Round "4"]
[White "djano"]
[Black "SabinaFoisor"]
[Result "1-0"]
[WhiteElo "2355"]
[BlackElo "2245"]
[TimeControl "180+2"]
[EndTime "14:37:38 PDT"]
[Termination "djano won by resignation"]

1. d4 {[%clk 0:03:02]} 1... d5 {[%clk 0:02:59.2]} 2. Bf4 {[%clk 0:03:02.8]} 2...
e6 {[%clk 0:02:56.8]} 3. e3 {[%clk 0:03:02.8]} 3... Bd6 {[%clk 0:02:57.7]} 4.
Bg3 {[%clk 0:03:02.7]} 4... Nf6 {[%clk 0:02:58.6]} 5. Nd2 {[%clk 0:03:03.8]}
5... b6 {[%clk 0:02:59.2]} 6. Bd3 {[%clk 0:03:04.6]} 6... Bb7 {[%clk 0:03:00.3]}
7. Ngf3 {[%clk 0:03:02.7]} 7... c5 {[%clk 0:03:01.1]} 8. c3 {[%clk 0:03:02.8]}
8... Nc6 {[%clk 0:03:01.9]} 9. Ne5 {[%clk 0:03:01.2]} 9... Ne7 {[%clk
0:02:59.1]} 10. Qa4+ {[%clk 0:02:58.5]} 10... Kf8 {[%clk 0:02:51.2]} 11. O-O
{[%clk 0:02:55.2]} 11... g6 {[%clk 0:02:40]} 12. Bh4 {[%clk 0:02:49.9]} 12...
Kg7 {[%clk 0:02:30]} 13. Ndf3 {[%clk 0:02:38.9]} 13... h6 {[%clk 0:02:16.4]} 14.
dxc5 {[%clk 0:02:36.1]} 14... Bxe5 {[%clk 0:02:09.4]} 15. Nxe5 {[%clk
0:02:35.9]} 15... g5 {[%clk 0:02:08.6]} 16. Bg3 {[%clk 0:02:25.6]} 16... bxc5
{[%clk 0:02:09.3]} 17. f4 {[%clk 0:02:24.9]} 17... g4 {[%clk 0:01:58.3]} 18. f5
{[%clk 0:02:25.8]} 18... d4 {[%clk 0:01:48.6]} 19. fxe6 {[%clk 0:02:17.6]} 19...
Qd5 {[%clk 0:01:44.5]} 20. e4 {[%clk 0:02:14.3]} 20... Qxe6 {[%clk 0:01:41.2]}
21. cxd4 {[%clk 0:02:12]} 21... cxd4 {[%clk 0:01:26]} 22. Qxd4 {[%clk
0:02:12.5]} 22... Qb6 {[%clk 0:01:26.9]} 23. Qxb6 {[%clk 0:02:09.7]} 23... axb6
{[%clk 0:01:28.8]} 24. Bh4 {[%clk 0:01:41]} 24... Neg8 {[%clk 0:01:18.8]} 25.
Nxf7 {[%clk 0:01:35.6]} 25... Kxf7 {[%clk 0:01:17]} 26. e5 {[%clk 0:01:36.8]}
26... Rd8 {[%clk 0:01:10.4]} 27. Rad1 {[%clk 0:01:32.3]} 27... Bd5 {[%clk
0:00:57.1]} 28. exf6 {[%clk 0:01:28.9]} 28... h5 {[%clk 0:00:54.1]} 29. Bc2
{[%clk 0:01:19.3]} 29... Nh6 {[%clk 0:00:54.4]} 30. Rxd5 {[%clk 0:01:19.7]}
30... Rxd5 {[%clk 0:00:54.4]} 31. Bb3 {[%clk 0:01:20.8]} 31... Rd8 {[%clk
0:00:55.1]} 32. Rd1 {[%clk 0:01:16.2]} 32... Ke6 {[%clk 0:00:55.2]} 33. Bg5
{[%clk 0:01:07.7]} 33... Nf7 {[%clk 0:00:54.6]} 34. Bf4 {[%clk 0:01:04.3]} 34...
h4 {[%clk 0:00:43]} 35. Kf2 {[%clk 0:01:04.4]} 35... Ne5 {[%clk 0:00:39.5]} 36.
Bxe5 {[%clk 0:01:03.9]} 36... Kxe5 {[%clk 0:00:34.9]} 37. Rxd5+ {[%clk
0:01:04.2]} 37... Rxd5 {[%clk 0:00:36.8]} 38. Bxd5 {[%clk 0:01:05]} 38... Kxd5
{[%clk 0:00:38.7]} 1-0